[Event "*** Titled Tuesday 3|2 Blitz"]
[Site "Chess.com"]
[Date "2017.05.02"]
[Round "6"]
[White "Saitama_Hero"]
[Black "scrapnel"]
[Result "0-1"]
[WhiteElo "2270"]
[BlackElo "2481"]
[TimeControl "180+2"]
[EndTime "14:19:24 PDT"]
[Termination "scrapnel won by resignation"]

1. d4 {[%clk 0:03:02]} 1... Nf6 {[%clk 0:03:00.3]} 2. c4 {[%clk 0:03:02.2]} 2...
e6 {[%clk 0:03:01.3]} 3. Nc3 {[%clk 0:03:03.2]} 3... Bb4 {[%clk 0:03:02]} 4. f3
{[%clk 0:03:04.6]} 4... d5 {[%clk 0:03:02.3]} 5. a3 {[%clk 0:03:05.2]} 5...
Bxc3+ {[%clk 0:03:03.5]} 6. bxc3 {[%clk 0:03:07.1]} 6... c5 {[%clk 0:03:05.1]}
7. cxd5 {[%clk 0:03:08]} 7... Nxd5 {[%clk 0:03:06]} 8. dxc5 {[%clk 0:03:06.8]}
8... Qa5 {[%clk 0:03:03.5]} 9. e4 {[%clk 0:03:08.3]} 9... Nf6 {[%clk 0:03:03]}
10. Be3 {[%clk 0:03:08.9]} 10... O-O {[%clk 0:03:03.4]} 11. Qb3 {[%clk 0:03:09]}
11... Nfd7 {[%clk 0:03:03.7]} 12. Bb5 {[%clk 0:03:08.4]} 12... Qc7 {[%clk
0:03:03.5]} 13. Qb4 {[%clk 0:03:02.7]} 13... Nc6 {[%clk 0:03:02.6]} 14. Bxc6
{[%clk 0:02:54.4]} 14... bxc6 {[%clk 0:03:00.8]} 15. Ne2 {[%clk 0:02:56.3]}
15... a5 {[%clk 0:02:53.2]} 16. Qd4 {[%clk 0:02:55.8]} 16... Ba6 {[%clk
0:02:51]} 17. Kf2 {[%clk 0:02:52.9]} 17... Ne5 {[%clk 0:02:46.3]} 18. Qd6 {[%clk
0:02:45.3]} 18... Nd3+ {[%clk 0:02:43.9]} 19. Kg3 {[%clk 0:02:45.3]} 19... Rac8
{[%clk 0:01:49.6]} 20. Rhd1 {[%clk 0:02:42.2]} 20... Bc4 {[%clk 0:01:28.1]} 21.
Nf4 {[%clk 0:02:29.2]} 21... Nxf4 {[%clk 0:01:18.1]} 22. Bxf4 {[%clk 0:02:29.4]}
22... Qa7 {[%clk 0:01:16.6]} 23. Rab1 {[%clk 0:02:24.4]} 23... f6 {[%clk
0:01:09]} 24. Qd4 {[%clk 0:02:00.9]} 24... Be2 {[%clk 0:01:01.7]} 25. Qd7 {[%clk
0:01:58.6]} 25... Qxd7 {[%clk 0:00:53.3]} 26. Rxd7 {[%clk 0:02:00.5]} 26... e5
{[%clk 0:00:54.4]} 27. Be3 {[%clk 0:01:58.6]} 27... Bb5 {[%clk 0:00:54.7]} 28.
a4 {[%clk 0:01:53.8]} 28... Bxa4 {[%clk 0:00:52.2]} 29. Rbb7 {[%clk 0:01:53.2]}
29... Kh8 {[%clk 0:00:50]} 30. Rxg7 {[%clk 0:01:41.6]} 30... Rg8 {[%clk
0:00:50.9]} 31. Rxg8+ {[%clk 0:01:42.9]} 31... Rxg8+ {[%clk 0:00:49.4]} 32. Kf2
{[%clk 0:01:44.2]} 32... Bc2 {[%clk 0:00:48.4]} 33. Ra7 {[%clk 0:01:43.8]} 33...
a4 {[%clk 0:00:49.2]} 34. Bh6 {[%clk 0:01:34.4]} 34... Rg6 {[%clk 0:00:46.7]}
35. Bf8 {[%clk 0:01:33.9]} 35... Kg8 {[%clk 0:00:45.4]} 36. Bd6 {[%clk
0:01:33.6]} 36... h5 {[%clk 0:00:45.7]} 37. h4 {[%clk 0:01:33.1]} 37... Bb3
{[%clk 0:00:45.7]} 38. Ra6 {[%clk 0:01:26.6]} 38... Rg7 {[%clk 0:00:44.8]} 39.
Ra8+ {[%clk 0:01:19.4]} 39... Kf7 {[%clk 0:00:39.3]} 40. g3 {[%clk 0:01:20.1]}
40... Ke6 {[%clk 0:00:38.6]} 41. f4 {[%clk 0:01:20.5]} 41... exf4 {[%clk
0:00:34.3]} 42. gxf4 {[%clk 0:01:20.7]} 42... f5 {[%clk 0:00:35.2]} 43. e5
{[%clk 0:01:03]} 43... Kd5 {[%clk 0:00:34.7]} 44. Kf3 {[%clk 0:00:48.1]} 44...
Bd1+ {[%clk 0:00:33.7]} 45. Kf2 {[%clk 0:00:46.8]} 45... Bb3 {[%clk 0:00:34]}
46. Bf8 {[%clk 0:00:43]} 46... Rg4 {[%clk 0:00:32.4]} 47. Rd8+ {[%clk
0:00:41.4]} 47... Ke6 {[%clk 0:00:24.7]} 48. Rd6+ {[%clk 0:00:34.2]} 48... Kf7
{[%clk 0:00:25]} 49. Rf6+ {[%clk 0:00:34.4]} 49... Ke8 {[%clk 0:00:22.8]} 50.
Bd6 {[%clk 0:00:33.7]} 50... Kd7 {[%clk 0:00:20.5]} 51. Rh6 {[%clk 0:00:19]}
51... a3 {[%clk 0:00:19.4]} 52. Rh7+ {[%clk 0:00:20.9]} 52... Ke6 {[%clk
0:00:18.5]} 53. Ra7 {[%clk 0:00:22.8]} 53... Rxf4+ {[%clk 0:00:19.2]} 54. Ke3
{[%clk 0:00:19.1]} 54... Ra4 {[%clk 0:00:20.6]} 55. Re7+ {[%clk 0:00:17.5]}
55... Kd5 {[%clk 0:00:21.7]} 56. Rd7 {[%clk 0:00:16.8]} 56... a2 {[%clk
0:00:18.7]} 57. e6 {[%clk 0:00:18.7]} 57... a1=Q {[%clk 0:00:12.7]} 58. Re7
{[%clk 0:00:20.6]} 58... Qe1+ {[%clk 0:00:12]} 59. Kd3 {[%clk 0:00:19.4]} 59...
Bc4+ {[%clk 0:00:13]} 0-1

[Event "*** Titled Tuesday 3|2 Blitz"]
[Site "Chess.com"]
[Date "2017.05.02"]
[Round "6"]
[White "spectralsoul"]
[Black "TricksOnly"]
[Result "1-0"]
[WhiteElo "2647"]
[BlackElo "2419"]
[TimeControl "180+2"]
[EndTime "14:19:26 PDT"]
[Termination "spectralsoul won on time"]

1. Nf3 {[%clk 0:03:02]} 1... d5 {[%clk 0:03:00.5]} 2. c4 {[%clk 0:03:02.8]} 2...
d4 {[%clk 0:03:00.9]} 3. b4 {[%clk 0:03:03.9]} 3... c5 {[%clk 0:02:43.8]} 4. e3
{[%clk 0:03:04.3]} 4... f6 {[%clk 0:02:28.2]} 5. exd4 {[%clk 0:03:01.2]} 5...
cxd4 {[%clk 0:02:28.4]} 6. c5 {[%clk 0:02:42.4]} 6... e5 {[%clk 0:02:19.8]} 7.
Bc4 {[%clk 0:02:34.7]} 7... Bg4 {[%clk 0:02:02.2]} 8. Qb3 {[%clk 0:02:33.5]}
8... Nh6 {[%clk 0:02:00]} 9. h3 {[%clk 0:02:33.4]} 9... Bh5 {[%clk 0:01:59.2]}
10. O-O {[%clk 0:02:33.2]} 10... Bf7 {[%clk 0:01:57.9]} 11. d3 {[%clk
0:02:27.4]} 11... Bxc4 {[%clk 0:01:57.2]} 12. Qxc4 {[%clk 0:02:28.1]} 12... Nf7
{[%clk 0:01:54.7]} 13. Re1 {[%clk 0:02:18.2]} 13... Be7 {[%clk 0:01:54.5]} 14.
Nbd2 {[%clk 0:02:19.7]} 14... O-O {[%clk 0:01:54.4]} 15. Nb3 {[%clk 0:02:17.8]}
15... Nc6 {[%clk 0:01:48.3]} 16. Bd2 {[%clk 0:02:15.3]} 16... Qd7 {[%clk
0:01:40.7]} 17. b5 {[%clk 0:02:15.1]} 17... Nd8 {[%clk 0:01:40.1]} 18. a4 {[%clk
0:02:15]} 18... Ne6 {[%clk 0:01:38.3]} 19. Bb4 {[%clk 0:01:44.8]} 19... Rfc8
{[%clk 0:01:36.9]} 20. Rac1 {[%clk 0:01:43.6]} 20... Nfd8 {[%clk 0:01:27.1]} 21.
Na5 {[%clk 0:00:37]} 21... Bxc5 {[%clk 0:01:11.9]} 22. Qb3 {[%clk 0:00:27.7]}
22... Bxb4 {[%clk 0:01:06.6]} 23. Qxb4 {[%clk 0:00:29.6]} 23... Rxc1 {[%clk
0:00:41.3]} 24. Rxc1 {[%clk 0:00:31.5]} 24... Rc8 {[%clk 0:00:42.2]} 25. Nc4
{[%clk 0:00:22.6]} 25... Nf4 {[%clk 0:00:35.7]} 26. Qd2 {[%clk 0:00:17.7]} 26...
Nf7 {[%clk 0:00:34.3]} 27. Kh2 {[%clk 0:00:11.5]} 27... h6 {[%clk 0:00:26.3]}
28. Ng1 {[%clk 0:00:12.3]} 28... Nd5 {[%clk 0:00:26.4]} 29. Ne2 {[%clk
0:00:13.4]} 29... Kh7 {[%clk 0:00:22.3]} 30. Na5 {[%clk 0:00:14.5]} 30... Rxc1
{[%clk 0:00:21.8]} 31. Qxc1 {[%clk 0:00:16.4]} 31... Nd6 {[%clk 0:00:21]} 32.
Qc5 {[%clk 0:00:16.9]} 32... Nb6 {[%clk 0:00:19]} 33. Ng3 {[%clk 0:00:14.1]}
33... Nxa4 {[%clk 0:00:18.4]} 34. Qxa7 {[%clk 0:00:13.9]} 34... Qxb5 {[%clk
0:00:19.1]} 35. Qb8 {[%clk 0:00:12.4]} 35... Qxa5 {[%clk 0:00:16]} 36. Qxd6
{[%clk 0:00:13.6]} 36... Qb6 {[%clk 0:00:14.1]} 37. Qe7 {[%clk 0:00:11.2]} 37...
Qc5 {[%clk 0:00:09.4]} 38. Qxb7 {[%clk 0:00:12]} 38... Nc3 {[%clk 0:00:10.1]}
39. Nf5 {[%clk 0:00:11.8]} 39... Qf8 {[%clk 0:00:11.2]} 40. h4 {[%clk
0:00:13.2]} 40... Kh8 {[%clk 0:00:11.6]} 41. h5 {[%clk 0:00:14.4]} 41... Ne2
{[%clk 0:00:11]} 42. g3 {[%clk 0:00:15.2]} 42... Nc1 {[%clk 0:00:11.9]} 43. Nh4
{[%clk 0:00:13.6]} 43... Qe8 {[%clk 0:00:10.8]} 44. Ng6+ {[%clk 0:00:13.1]}
44... Kh7 {[%clk 0:00:11.6]} 45. Qe4 {[%clk 0:00:14.6]} 45... Kg8 {[%clk
0:00:11.4]} 46. f4 {[%clk 0:00:14.1]} 46... Kf7 {[%clk 0:00:03.2]} 47. fxe5
{[%clk 0:00:14.8]} 47... fxe5 {[%clk 0:00:04.1]} 48. Nxe5+ {[%clk 0:00:13.6]}
48... Kg8 {[%clk 0:00:05.2]} 49. Qf5 {[%clk 0:00:11.3]} 49... Ne2 {[%clk
0:00:04.8]} 50. Ng6 {[%clk 0:00:11.4]} 50... Nc3 {[%clk 0:00:04.5]} 51. Kh3
{[%clk 0:00:10.5]} 51... Nb5 {[%clk 0:00:02.2]} 52. Qd5+ {[%clk 0:00:06]} 52...
Kh7 {[%clk 0:00:02.6]} 53. Nf4 {[%clk 0:00:07.2]} 53... Nc7 {[%clk 0:00:02.8]}
54. Qxd4 {[%clk 0:00:07.4]} 1-0

[Event "*** Titled Tuesday 3|2 Blitz"]
[Site "Chess.com"]
[Date "2017.05.02"]
[Round "6"]
[White "pKiLz5Rn9b"]
[Black "Rikikits"]
[Result "0-1"]
[WhiteElo "2452"]
[BlackElo "2576"]
[TimeControl "180+2"]
[EndTime "14:19:41 PDT"]
[Termination "Rikikits won by resignation"]

1. d4 {[%clk 0:03:02]} 1... g6 {[%clk 0:02:56.7]} 2. Nf3 {[%clk 0:03:02.2]} 2...
Bg7 {[%clk 0:02:58.3]} 3. e4 {[%clk 0:03:02.7]} 3... d6 {[%clk 0:02:58]} 4. Nc3
{[%clk 0:03:03.3]} 4... a6 {[%clk 0:02:59.5]} 5. a4 {[%clk 0:03:04.1]} 5... Nd7
{[%clk 0:03:00.7]} 6. Bc4 {[%clk 0:02:49.4]} 6... e6 {[%clk 0:03:00.8]} 7. a5
{[%clk 0:02:48.5]} 7... Ne7 {[%clk 0:03:00.5]} 8. O-O {[%clk 0:02:49.4]} 8...
O-O {[%clk 0:03:01.5]} 9. Re1 {[%clk 0:02:50.2]} 9... b5 {[%clk 0:03:02.3]} 10.
axb6 {[%clk 0:02:50.9]} 10... cxb6 {[%clk 0:03:03.5]} 11. Qe2 {[%clk 0:02:47.5]}
11... Bb7 {[%clk 0:03:03.8]} 12. Bb3 {[%clk 0:01:56.8]} 12... b5 {[%clk
0:02:40.6]} 13. Bf4 {[%clk 0:01:57.6]} 13... Nb6 {[%clk 0:02:40.9]} 14. e5
{[%clk 0:01:50.3]} 14... Nf5 {[%clk 0:02:24.8]} 15. Rad1 {[%clk 0:01:43.4]}
15... Rc8 {[%clk 0:02:14.1]} 16. d5 {[%clk 0:01:23.8]} 16... Rxc3 {[%clk
0:02:11.3]} 17. bxc3 {[%clk 0:01:24.3]} 17... Nxd5 {[%clk 0:02:07.7]} 18. Bxd5
{[%clk 0:01:22.1]} 18... Bxd5 {[%clk 0:02:09.6]} 19. Nd4 {[%clk 0:01:04.1]}
19... Nxd4 {[%clk 0:01:53.7]} 20. Rxd4 {[%clk 0:00:48.1]} 20... dxe5 {[%clk
0:01:50.8]} 21. Bxe5 {[%clk 0:00:49.3]} 21... Qg5 {[%clk 0:01:44.5]} 22. f4
{[%clk 0:00:40.1]} 22... Qf5 {[%clk 0:01:39]} 23. Bxg7 {[%clk 0:00:41.3]} 23...
Kxg7 {[%clk 0:01:40.9]} 24. Ra1 {[%clk 0:00:42.6]} 24... Rc8 {[%clk 0:01:36.6]}
25. Qd2 {[%clk 0:00:37]} 25... Rc6 {[%clk 0:01:35.5]} 26. h3 {[%clk 0:00:32.1]}
26... h5 {[%clk 0:01:35.6]} 27. Kh2 {[%clk 0:00:29.9]} 27... Qf6 {[%clk
0:01:33.7]} 28. Qe3 {[%clk 0:00:28.8]} 28... Kh7 {[%clk 0:01:25.4]} 29. Qd2
{[%clk 0:00:25.6]} 29... Qe7 {[%clk 0:01:25.8]} 30. Rd3 {[%clk 0:00:19.4]} 30...
Qc7 {[%clk 0:01:25.3]} 31. g4 {[%clk 0:00:16.6]} 31... h4 {[%clk 0:01:21.2]} 32.
Re1 {[%clk 0:00:13.2]} 32... Rc4 {[%clk 0:01:20.4]} 33. Re5 {[%clk 0:00:11.7]}
33... b4 {[%clk 0:01:15.8]} 34. Kg1 {[%clk 0:00:06.8]} 34... bxc3 {[%clk
0:01:10.9]} 35. Qf2 {[%clk 0:00:07.8]} 35... Kg7 {[%clk 0:01:04.6]} 36. Rd4
{[%clk 0:00:05.9]} 36... a5 {[%clk 0:00:52.6]} 37. g5 {[%clk 0:00:06]} 37... Qc5
{[%clk 0:00:50]} 38. Rxc4 {[%clk 0:00:06.3]} 38... Qxc4 {[%clk 0:00:51.9]} 39.
Qxh4 {[%clk 0:00:02.7]} 39... Qd4+ {[%clk 0:00:53]} 40. Qf2 {[%clk 0:00:03.7]}
40... Qb4 {[%clk 0:00:49.1]} 41. Re1 {[%clk 0:00:03.7]} 41... a4 {[%clk
0:00:48]} 42. Qe3 {[%clk 0:00:04]} 42... a3 {[%clk 0:00:46.2]} 43. Qe5+ {[%clk
0:00:05.1]} 43... Kg8 {[%clk 0:00:45.3]} 44. f5 {[%clk 0:00:02.7]} 44... gxf5
{[%clk 0:00:40.2]} 45. Qe3 {[%clk 0:00:02.3]} 45... a2 {[%clk 0:00:38.3]} 46. g6
{[%clk 0:00:03.8]} 46... fxg6 {[%clk 0:00:34.3]} 47. Qg3 {[%clk 0:00:05]} 47...
Qd4+ {[%clk 0:00:33.4]} 48. Kh2 {[%clk 0:00:02.8]} 48... Kg7 {[%clk 0:00:27.5]}
49. Qc7+ {[%clk 0:00:03.8]} 49... Kh6 {[%clk 0:00:28.6]} 50. Qg3 {[%clk
0:00:05.3]} 50... g5 {[%clk 0:00:22.6]} 51. Rf1 {[%clk 0:00:03.8]} 51... Qd2+
{[%clk 0:00:20.9]} 52. Kg1 {[%clk 0:00:04.9]} 52... f4 {[%clk 0:00:15.4]} 53.
Qg4 {[%clk 0:00:03.3]} 53... Qd4+ {[%clk 0:00:15.5]} 54. Kh2 {[%clk 0:00:04.3]}
54... Qd2+ {[%clk 0:00:17.1]} 55. Kg1 {[%clk 0:00:05.6]} 55... Qe3+ {[%clk
0:00:18.4]} 56. Kh2 {[%clk 0:00:05.9]} 56... Qd2+ {[%clk 0:00:17.4]} 57. Kg1
{[%clk 0:00:07]} 57... Qxc2 {[%clk 0:00:19.1]} 58. h4 {[%clk 0:00:08]} 58... Qf5
{[%clk 0:00:19.8]} 59. hxg5+ {[%clk 0:00:03.5]} 59... Qxg5 {[%clk 0:00:20.3]}
60. Qxg5+ {[%clk 0:00:05.4]} 60... Kxg5 {[%clk 0:00:22.2]} 61. Kf2 {[%clk
0:00:06.9]} 61... Be4 {[%clk 0:00:22.6]} 0-1

[Event "*** Titled Tuesday 3|2 Blitz"]
[Site "Chess.com"]
[Date "2017.05.02"]
[Round "6"]
[White "Ilja_Semjonovs"]
[Black "Bryakin_Mikhail"]
[Result "1/2-1/2"]
[WhiteElo "2242"]
[BlackElo "2524"]
[TimeControl "180+2"]
[EndTime "14:19:44 PDT"]
[Termination "Game drawn by repetition"]

1. d4 {[%clk 0:03:02]} 1... Nf6 {[%clk 0:02:58.2]} 2. Nf3 {[%clk 0:03:02.1]}
2... e6 {[%clk 0:02:58.3]} 3. Bg5 {[%clk 0:03:02.6]} 3... Be7 {[%clk 0:02:57]}
4. Bxf6 {[%clk 0:03:03.7]} 4... gxf6 {[%clk 0:02:49.4]} 5. g3 {[%clk 0:03:02.2]}
5... d5 {[%clk 0:02:49.1]} 6. c3 {[%clk 0:03:02.1]} 6... c5 {[%clk 0:02:50.4]}
7. e3 {[%clk 0:03:00.9]} 7... Nc6 {[%clk 0:02:51.7]} 8. Nbd2 {[%clk 0:03:01]}
8... b6 {[%clk 0:02:48.1]} 9. Bd3 {[%clk 0:03:00.9]} 9... Bb7 {[%clk 0:02:48.2]}
10. O-O {[%clk 0:03:00]} 10... e5 {[%clk 0:02:48.4]} 11. dxe5 {[%clk 0:02:59.5]}
11... fxe5 {[%clk 0:02:50.3]} 12. e4 {[%clk 0:03:00.5]} 12... d4 {[%clk
0:02:51.2]} 13. Bb5 {[%clk 0:02:52.9]} 13... Qc7 {[%clk 0:02:46.9]} 14. cxd4
{[%clk 0:02:49.4]} 14... exd4 {[%clk 0:02:48.8]} 15. Rc1 {[%clk 0:02:42.9]}
15... O-O-O {[%clk 0:02:37.5]} 16. b4 {[%clk 0:02:34.7]} 16... Nxb4 {[%clk
0:02:31.2]} 17. a3 {[%clk 0:02:28.8]} 17... Na2 {[%clk 0:02:29.1]} 18. Ra1
{[%clk 0:02:04.6]} 18... Nc3 {[%clk 0:02:28.1]} 19. Qb3 {[%clk 0:02:05.1]} 19...
Nxb5 {[%clk 0:02:25.9]} 20. Qxb5 {[%clk 0:02:05.1]} 20... Kb8 {[%clk 0:02:26.8]}
21. a4 {[%clk 0:02:03.8]} 21... Qd7 {[%clk 0:02:12.7]} 22. Qb3 {[%clk 0:02:01]}
22... Qe6 {[%clk 0:02:10.4]} 23. Qb2 {[%clk 0:01:53.5]} 23... f5 {[%clk
0:01:55.7]} 24. exf5 {[%clk 0:01:47.7]} 24... Qc6 {[%clk 0:01:56.7]} 25. a5
{[%clk 0:01:43.4]} 25... Bg5 {[%clk 0:01:56.8]} 26. axb6 {[%clk 0:01:09.9]}
26... Bxd2 {[%clk 0:01:47.5]} 27. Rxa7 {[%clk 0:01:03.4]} 27... Qxf3 {[%clk
0:01:47.5]} 28. Rxb7+ {[%clk 0:01:04.2]} 28... Qxb7 {[%clk 0:01:46.3]} 29. Qxd2
{[%clk 0:01:05.1]} 29... Rd6 {[%clk 0:01:41.3]} 30. Qf4 {[%clk 0:01:02.9]} 30...
Rd8 {[%clk 0:01:40.6]} 31. f6 {[%clk 0:01:03.9]} 31... Qf7 {[%clk 0:01:07]} 32.
Ra1 {[%clk 0:00:49.3]} 32... Qxf6 {[%clk 0:01:00.6]} 33. Qe4 {[%clk 0:00:48.7]}
33... Rd5 {[%clk 0:00:49.3]} 34. Qxh7 {[%clk 0:00:48.7]} 34... Qxb6 {[%clk
0:00:41]} 35. Rb1 {[%clk 0:00:43]} 35... Qxb1+ {[%clk 0:00:42]} 36. Qxb1+ {[%clk
0:00:43.5]} 36... Kc7 {[%clk 0:00:43.9]} 37. Qd3 {[%clk 0:00:42.7]} 37... Rb8
{[%clk 0:00:25.9]} 38. h4 {[%clk 0:00:38.5]} 38... Rb4 {[%clk 0:00:26.8]} 39.
Qe4 {[%clk 0:00:34.1]} 39... Rd6 {[%clk 0:00:24]} 40. Qe7+ {[%clk 0:00:26.8]}
40... Kc6 {[%clk 0:00:24]} 41. Qe8+ {[%clk 0:00:26.6]} 41... Kd5 {[%clk
0:00:19.6]} 42. Qf7+ {[%clk 0:00:26]} 42... Kc6 {[%clk 0:00:20.8]} 43. Qe8+
{[%clk 0:00:26.6]} 43... Rd7 {[%clk 0:00:20]} 44. Qe4+ {[%clk 0:00:13.3]} 44...
Kb6 {[%clk 0:00:10.3]} 45. Qe6+ {[%clk 0:00:13.9]} 45... Kc7 {[%clk 0:00:11.6]}
46. Qe5+ {[%clk 0:00:15]} 46... Kc6 {[%clk 0:00:13]} 47. Qe6+ {[%clk 0:00:16.2]}
47... Rd6 {[%clk 0:00:14.1]} 48. Qe8+ {[%clk 0:00:16]} 48... Kd5 {[%clk
0:00:13.2]} 49. Qf7+ {[%clk 0:00:16.7]} 49... Kc6 {[%clk 0:00:10.9]} 50. Qe8+
{[%clk 0:00:17.3]} 50... Rd7 {[%clk 0:00:11.6]} 51. Qe4+ {[%clk 0:00:14.4]}
51... Kb5 {[%clk 0:00:08.7]} 52. Qe8 {[%clk 0:00:13.1]} 52... Kc6 {[%clk
0:00:09.8]} 53. Qe4+ {[%clk 0:00:13.9]} 53... Rd5 {[%clk 0:00:10.9]} 54. Qe6+
{[%clk 0:00:14.1]} 54... Rd6 {[%clk 0:00:11.9]} 55. Qe8+ {[%clk 0:00:15.2]}
1/2-1/2

[Event "*** Titled Tuesday 3|2 Blitz"]
[Site "Chess.com"]
[Date "2017.05.02"]
[Round "6"]
[White "JSMastropiero"]
[Black "evgenyermolaev"]
[Result "0-1"]
[WhiteElo "2199"]
[BlackElo "2356"]
[TimeControl "180+2"]
[EndTime "14:20:02 PDT"]
[Termination "evgenyermolaev won by resignation"]

1. d4 {[%clk 0:03:02]} 1... Nf6 {[%clk 0:03:00.4]} 2. c4 {[%clk 0:03:02.5]} 2...
c5 {[%clk 0:03:01.3]} 3. d5 {[%clk 0:03:02.2]} 3... g6 {[%clk 0:03:00.7]} 4. Nc3
{[%clk 0:03:02.3]} 4... Bg7 {[%clk 0:03:01.7]} 5. e4 {[%clk 0:03:03.5]} 5... d6
{[%clk 0:03:02.9]} 6. f3 {[%clk 0:02:57.6]} 6... O-O {[%clk 0:03:03.2]} 7. Nge2
{[%clk 0:02:55.2]} 7... e6 {[%clk 0:03:04]} 8. Ng3 {[%clk 0:02:54.8]} 8... exd5
{[%clk 0:03:05]} 9. cxd5 {[%clk 0:02:56.7]} 9... Na6 {[%clk 0:02:47.5]} 10. Be2
{[%clk 0:02:55.8]} 10... Nc7 {[%clk 0:02:42.7]} 11. O-O {[%clk 0:02:54.6]} 11...
Rb8 {[%clk 0:02:35.3]} 12. a4 {[%clk 0:02:54.5]} 12... Na6 {[%clk 0:02:27.9]}
13. Bf4 {[%clk 0:02:48.8]} 13... Nb4 {[%clk 0:02:26.4]} 14. Qd2 {[%clk
0:02:43.1]} 14... Ne8 {[%clk 0:02:10.7]} 15. Bh6 {[%clk 0:02:08.3]} 15... f5
{[%clk 0:01:52.9]} 16. Bxg7 {[%clk 0:02:04.2]} 16... Nxg7 {[%clk 0:01:53.6]} 17.
f4 {[%clk 0:01:32.4]} 17... fxe4 {[%clk 0:01:44.2]} 18. Ngxe4 {[%clk 0:01:34.3]}
18... Bf5 {[%clk 0:01:43.6]} 19. Bf3 {[%clk 0:01:26.1]} 19... a6 {[%clk
0:01:21.6]} 20. Rae1 {[%clk 0:01:20.8]} 20... b5 {[%clk 0:01:13.6]} 21. axb5
{[%clk 0:01:22.7]} 21... axb5 {[%clk 0:01:15.5]} 22. g4 {[%clk 0:01:16.8]} 22...
Bxe4 {[%clk 0:00:58.1]} 23. Nxe4 {[%clk 0:01:18.7]} 23... Qh4 {[%clk 0:00:47.7]}
24. Nxd6 {[%clk 0:01:14.3]} 24... Qf6 {[%clk 0:00:41]} 25. Ne4 {[%clk
0:01:08.6]} 25... Qxf4 {[%clk 0:00:39.3]} 26. Qxf4 {[%clk 0:01:08.5]} 26... Rxf4
{[%clk 0:00:40.6]} 27. Nxc5 {[%clk 0:01:08.3]} 27... Rbf8 {[%clk 0:00:33.4]} 28.
d6 {[%clk 0:00:40.3]} 28... Rxf3 {[%clk 0:00:18.3]} 29. Rxf3 {[%clk 0:00:42.2]}
29... Rxf3 {[%clk 0:00:19.8]} 30. d7 {[%clk 0:00:41.1]} 30... Nc6 {[%clk
0:00:20.8]} 31. Re8+ {[%clk 0:00:17.8]} 31... Rf8 {[%clk 0:00:20.6]} 32. Rc8
{[%clk 0:00:15.4]} 32... Nd8 {[%clk 0:00:15.4]} 33. b4 {[%clk 0:00:15.4]} 33...
Nge6 {[%clk 0:00:10.3]} 34. Nxe6 {[%clk 0:00:13]} 34... Nxe6 {[%clk 0:00:10.6]}
35. Re8 {[%clk 0:00:14.5]} 35... Kf7 {[%clk 0:00:04.8]} 36. Rc8 {[%clk
0:00:15.1]} 36... Rd8 {[%clk 0:00:05.1]} 37. Kf2 {[%clk 0:00:09.9]} 37... Rxd7
{[%clk 0:00:06]} 38. Rb8 {[%clk 0:00:11.3]} 38... Rd5 {[%clk 0:00:06.6]} 39.
Rb7+ {[%clk 0:00:11.7]} 39... Kg8 {[%clk 0:00:07.8]} 40. Kg3 {[%clk 0:00:13.3]}
40... Nd4 {[%clk 0:00:05.5]} 41. Kh4 {[%clk 0:00:13.1]} 41... h6 {[%clk
0:00:05.5]} 42. h3 {[%clk 0:00:12.8]} 42... Nc2 {[%clk 0:00:03.3]} 43. Rc7
{[%clk 0:00:11.9]} 43... Nxb4 {[%clk 0:00:03.8]} 44. Rb7 {[%clk 0:00:12]} 44...
Nd3 {[%clk 0:00:04.3]} 45. Kg3 {[%clk 0:00:09.5]} 45... b4 {[%clk 0:00:05.3]}
46. Kf3 {[%clk 0:00:10.3]} 46... Ne5+ {[%clk 0:00:05.3]} 47. Ke4 {[%clk
0:00:11.3]} 47... Rc5 {[%clk 0:00:05.1]} 48. Rxb4 {[%clk 0:00:11.5]} 48... Rc4+
{[%clk 0:00:06.3]} 49. Rxc4 {[%clk 0:00:10.1]} 49... Nxc4 {[%clk 0:00:08.2]} 50.
h4 {[%clk 0:00:10.9]} 50... Kg7 {[%clk 0:00:08.9]} 51. Kd4 {[%clk 0:00:11.1]}
51... Nd6 {[%clk 0:00:09.5]} 52. Ke5 {[%clk 0:00:12.3]} 52... Nc4+ {[%clk
0:00:10.5]} 53. Kf4 {[%clk 0:00:13]} 53... Kf6 {[%clk 0:00:10.4]} 54. Ke4 {[%clk
0:00:12.9]} 54... Ne5 {[%clk 0:00:09.6]} 55. Kf4 {[%clk 0:00:13]} 55... g5+
{[%clk 0:00:10.3]} 56. hxg5+ {[%clk 0:00:14.2]} 56... hxg5+ {[%clk 0:00:12.2]}
57. Kg3 {[%clk 0:00:15.7]} 57... Ke6 {[%clk 0:00:12.7]} 58. Kh3 {[%clk
0:00:15.8]} 58... Kd5 {[%clk 0:00:13.8]} 59. Kg3 {[%clk 0:00:17.4]} 59... Ke4
{[%clk 0:00:14.8]} 0-1